lending/lending_fUSD_20250408
["ID","MTS","AMOUNT","RATE_DAILY","PERIOD"]
[357543135,1744134632264,-431.822,0.00037335,2]
[357543136,1744134632274,-1036.924,0.00037335,2]
[357543137,1744134632284,-790.0,0.00037335,2]
[357543138,1744134632294,-544.0,0.00037335,2]
[357543139,1744134632303,-150.0,0.00037335,2]
[357543140,1744134632313,-3115.754,0.00037335,2]
[357543141,1744134632322,-852.0,0.00037335,2]
[357543142,1744134632331,-151.0,0.00037335,2]
[357543143,1744134632340,-150.0,0.00040335,2]
[357543144,1744134632349,-290.65260374,0.00041,120]
[357543145,1744134632358,-159.3,0.00041,2]
[357543146,1744134632367,-1210.38249014,0.00042,30]
[357543147,1744134632376,-226.9,0.000429,2]
[357543148,1744134632385,-700.0,0.00042943,16]
[357543149,1744134632394,-700.0,0.00042943,16]
[357543150,1744134632403,-700.0,0.00042943,16]
[357543151,1744134632412,-694.57595087,0.00042943,16]
[357543152,1744134632431,-5.42404913,0.00042943,16]
[357543153,1744134632440,-700.0,0.00042943,16]
[357543154,1744134632450,-3031.1,0.00042943,2]
[357543155,1744134632459,-3797.65,0.00042943,30]
[357543156,1744134632468,-1123.53,0.00042943,2]
[357543157,1744134632478,-9999.99,0.00042943,2]
[357543158,1744134632487,-7998.65,0.00042943,2]
[357543159,1744134632496,-4008.7,0.00042943,2]
[357543160,1744134632505,-1459.79,0.00042943,2]
[357543161,1744134632514,-299.99,0.00042943,120]
[357543162,1744134632523,-700.0,0.00042944,16]
[357543163,1744134632532,-700.0,0.00042944,16]
[357543164,1744134632541,-700.0,0.00042944,16]
[357543165,1744134632550,-574.90629833,0.00042944,16]
[357543166,1744134632559,-150.0,0.00043401,30]
[357543167,1744134632568,-150.0,0.00043401,30]
[357543168,1744134632578,-1000.0,0.00044401,120]
[357543169,1744134632588,-191.47,0.00045292,2]
[357543170,1744134632597,-2000.0,0.000471,2]
[357543171,1744134632607,-250.0,0.00047482,120]
[357543172,1744134632617,-191.47,0.00047556,2]
[357543173,1744134632627,-290.67,0.00047967,2]
[357543174,1744134632636,-19246.40445165,0.00048309,2]
[357543176,1744134632649,-332.64962716,0.00048309,2]
[357543180,1744134632683,-1498.51244567,0.00048309,2]
[357543182,1744134632694,-2822.43347552,0.00048309,2]
[357543184,1744134632704,-238.21,0.00048442,120]
[357543186,1744134632714,-200.0,0.00048503,7]
[357543188,1744134632723,-785.62,0.00048535,30]
[357543190,1744134632732,-169.21,0.00048596,2]
[357543192,1744134632742,-1000.0,0.00048662,2]
[357543194,1744134632751,-309.89336138,0.000488,120]
[357543196,1744134632761,-159.38,0.00048877,2]
[357543198,1744134632770,-445.0,0.00048946,30]
[357543200,1744134632779,-150.0,0.00048946,30]
[357543201,1744134632789,-150.0,0.00048946,30]
[357543203,1744134632798,-348.14,0.00048946,30]
[357543204,1744134632807,-445.0,0.00048946,30]
[357543206,1744134632817,-348.14,0.00048946,30]
[357543207,1744134632826,-150.0,0.00048946,30]
[357543208,1744134632835,-49.30643292,0.00048946,30]
[357543210,1744134632846,-395.69356708,0.00048946,30]
[357543211,1744134632855,-150.0,0.00048946,30]
[357543214,1744134632865,-5.30350993,0.00048946,30]
[357543216,1744134632876,-144.69649007,0.00048946,30]
[357543218,1744134632887,-348.14,0.00048946,30]
[357543220,1744134632896,-27.44742669,0.00048946,30]
[357543221,1744134633016,-417.55257331,0.00048946,30]
[357543222,1744134633026,-150.0,0.00048946,30]
[357543223,1744134633036,-348.14,0.00048946,30]
[357543224,1744134633046,-253.54,0.00048946,30]
[357543225,1744134633055,-696.28,0.00048946,30]
[357543226,1744134633065,-983.7,0.00048946,30]
[357543227,1744134633074,-150.0,0.00048946,30]
[357543228,1744134633084,-445.0,0.00048946,30]
[357543229,1744134633094,-163.38,0.00048946,30]
[357543230,1744134633103,-348.14,0.00048946,30]
[357543231,1744134633113,-159.45,0.00048946,30]
[357543232,1744134633123,-150.0,0.00048946,30]
[357543233,1744134633133,-500.0,0.00049,120]
[357543234,1744134633143,-64.22035697,0.00049,120]
[357543235,1744134633155,-435.77964303,0.00049,120]
[357543236,1744134633165,-500.0,0.00049,120]
[357543237,1744134633175,-405.0492582,0.00049012,25]
[357543238,1744134633187,-594.9507418,0.00049012,25]
[357543239,1744134633199,-11.60641358,0.00049016,120]
[357543240,1744134633211,-238.39358642,0.00049016,120]
[357543241,1744134633221,-153.25,0.00049019,2]
[357543242,1744134633231,-539.30050583,0.00049041,30]
[357543243,1744134633279,-261.51949417,0.00049041,30]
[357543244,1744134633290,-708.78486009,0.0004911,30]
[357543245,1744134633302,-76.83513991,0.0004911,30]
[357543246,1744134633312,-339.25402354,0.0004911,30]
[357543247,1744134633336,-308.30799996,0.0004911,30]
[357543262,1744134638318,-703.2347122,0.000425,2]
[357543263,1744134638328,-253.38,0.00044795,2]
[357543264,1744134638338,-785.62,0.0004911,30]
[357543265,1744134638347,-785.62,0.0004911,30]
[357543266,1744134638358,-445.7,0.0004911,30]
[357543267,1744134638368,-445.7,0.0004911,30]
[357543268,1744134638378,-445.7,0.0004911,30]
[357543269,1744134638388,-445.7,0.0004911,30]
[357543270,1744134638397,-445.7,0.0004911,30]
[357543271,1744134638407,-445.7,0.0004911,30]
[357543272,1744134638416,-445.7,0.0004911,30]
[357543273,1744134638427,-445.7,0.0004911,30]
[357543274,1744134638438,-445.0,0.00049178,30]
[357543275,1744134638448,-150.0,0.00049178,30]
[357543276,1744134638458,-150.0,0.00049178,30]
[357543277,1744134638467,-150.0,0.00049178,30]
[357543278,1744134638479,-348.14,0.00049178,30]
[357543279,1744134638488,-175.98,0.00049219,2]
[357543280,1744134638497,-1397.931,0.00049315,86]
[357543281,1744134638507,-700.0,0.00049315,26]
[357543282,1744134638516,-500.21807885,0.00049438,10]
[357543283,1744134638526,-500.0,0.00049438,10]
[357543284,1744134638536,-445.7,0.00049493,30]
[357543285,1744134638545,-785.62,0.00049493,30]
[357543286,1744134638555,-445.7,0.00049493,30]
[357543287,1744134638566,-785.62,0.00049493,30]
[357543288,1744134638576,-785.62,0.00049493,30]
[357543289,1744134638585,-785.62,0.00049493,30]
[357543290,1744134638595,-785.62,0.00049493,30]
[357543291,1744134638605,-785.62,0.00049493,30]
[357543292,1744134638614,-785.62,0.00049493,30]
[357543293,1744134638624,-785.62,0.00049493,30]
[357543294,1744134638633,-785.62,0.00049493,30]
[357543295,1744134638643,-445.7,0.00049493,30]
[357543296,1744134638653,-785.62,0.00049493,30]
[357543297,1744134638663,-445.7,0.00049493,30]
[357543298,1744134638672,-445.7,0.00049493,30]
[357543299,1744134638684,-785.62,0.00049493,30]
[357543300,1744134638693,-785.62,0.00049493,30]
[357543301,1744134638704,-445.7,0.00049493,30]
[357543302,1744134638713,-445.7,0.00049493,30]
[357543303,1744134638723,-785.62,0.00049493,30]
[357543304,1744134638733,-785.62,0.00049493,30]
[357543305,1744134638742,-445.7,0.00049493,30]
[357543306,1744134638752,-785.62,0.00049493,30]
[357543307,1744134638762,-445.7,0.00049493,30]
[357543308,1744134638772,-785.62,0.00049493,30]
[357543309,1744134638781,-445.7,0.00049493,30]
[357543310,1744134638790,-785.62,0.00049493,30]
[357543311,1744134638799,-445.7,0.00049493,30]
[357543312,1744134638809,-445.7,0.00049493,30]
[357543313,1744134638819,-785.62,0.00049493,30]
[357543314,1744134638828,-785.62,0.00049493,30]
[357543315,1744134638838,-445.7,0.00049493,30]
[357543316,1744134638847,-445.7,0.00049493,30]
[357543317,1744134638858,-785.62,0.00049493,30]
[357543318,1744134638868,-445.7,0.00049493,30]
[357543319,1744134638878,-785.62,0.00049493,30]
[357543320,1744134638888,-785.62,0.00049493,30]
[357543321,1744134638897,-445.7,0.00049493,30]
[357543322,1744134638906,-785.62,0.00049493,30]
[357543324,1744134638916,-445.7,0.00049493,30]
[357543326,1744134638927,-445.7,0.00049493,30]
[357543328,1744134638937,-785.62,0.00049493,30]
[357543329,1744134638946,-785.62,0.00049493,30]
[357543331,1744134638956,-429.99461881,0.00049493,30]
[357543334,1744134638968,-15.70538119,0.00049493,30]
[357543336,1744134638979,-785.62,0.00049493,30]
[357543338,1744134638989,-445.7,0.00049493,30]
[357543340,1744134638999,-785.62,0.00049493,30]
[357543342,1744134639009,-445.7,0.00049493,30]
[357543344,1744134639018,-445.7,0.00049493,30]
[357543346,1744134639028,-785.62,0.00049493,30]
[357543348,1744134639037,-785.62,0.00049493,30]
[357543350,1744134639047,-445.7,0.00049493,30]
[357543352,1744134639056,-445.7,0.00049493,30]
[357543354,1744134639065,-785.62,0.00049493,30]
[357543356,1744134639075,-445.7,0.00049493,30]
[357543358,1744134639084,-445.7,0.00049493,30]
[357543360,1744134639094,-1119.41688528,0.0004959,16]
[357543362,1744134639105,-5869.39126525,0.0004959,16]
[357543364,1744134639117,-5511.19184947,0.0004959,16]
[357543366,1744134639126,-671.9325215,0.00049687,2]
[357543368,1744134639136,-159.45,0.00049767,30]
[357543370,1744134639146,-159.45,0.00049767,30]
[357543372,1744134639155,-159.45,0.00049767,30]
[357543374,1744134639164,-159.45,0.00049767,30]
[357543376,1744134639174,-159.45,0.00049767,30]
[357543378,1744134639188,-159.45,0.00049767,30]
[357543380,1744134639198,-159.45,0.00049767,30]
[357543381,1744134639210,-150.0,0.00049767,30]
[357543383,1744134639220,-159.45,0.00049767,30]
[357543385,1744134639229,-159.45,0.00049767,30]
[357543387,1744134639239,-191.47,0.00049819,2]
[357543389,1744134639249,-3726.267,0.0004989,2]
[357543391,1744134639259,-2147.2553,0.0004989,2]
[357543393,1744134639268,-605.65516346,0.000499,2]
[357543395,1744134639281,-1394.34483654,0.000499,2]
[357543397,1744134639291,-9763.04005992,0.0004999,2]
[357543399,1744134639302,-282.77845081,0.0004999,2]
[357543402,1744134639321,-452.98361147,0.0004999,2]
[357543411,1744134639403,-2644.06317,0.0004999,2]
[357543595,1744134640737,-204.21,0.000429,2]
[357543598,1744134640747,-151.0,0.00044795,2]
[357543601,1744134640757,-612.65,0.000492,7]
[357543604,1744134640767,-188.41493823,0.0004999,2]
[357543607,1744134640778,-775.16336671,0.0004999,2]
[357543612,1744134640799,-2953.89600003,0.0004999,2]
[357543615,1744134640810,-25705.72021847,0.0004999,2]
[357543618,1744134640820,-150.0,0.00049994,120]
[357543621,1744134640830,-10711.647376,0.0005,2]
[357543624,1744134640839,-350.0,0.0005,120]
[357543627,1744134640849,-400.0,0.0005,120]
[357543630,1744134640859,-1361.13240553,0.0005,5]
[357543833,1744134643441,-1442.79136128,0.00049587,15]
[357543834,1744134643451,-1275.6641261,0.0005,5]
[357543835,1744134643462,-2943.98651801,0.0005,3]
[357543836,1744134643472,-7720.49867849,0.0005,5]
[357543837,1744134643483,-1516.8113192,0.0005,2]
[357543838,1744134643492,-157.94331245,0.0005,120]
[357543839,1744134643502,-2868.38644285,0.0005,2]
[357543840,1744134643512,-300.0,0.0005,2]
[357543841,1744134643521,-292.76,0.00050036,2]
[357543842,1744134643531,-150.47,0.00050036,2]
[357543843,1744134643540,-29558.5215,0.0005006,2]
[357543844,1744134643550,-1636.8139943,0.000501,7]
[357543845,1744134643559,-159.45,0.0005016,30]
[357543846,1744134643569,-159.45,0.0005016,30]
[357543847,1744134643578,-159.45,0.0005016,30]
[357543848,1744134643587,-159.45,0.0005016,30]
[357543849,1744134643597,-159.45,0.0005016,30]
[357543850,1744134643607,-159.45,0.0005016,30]
[357543851,1744134643617,-159.45,0.0005016,30]
[357543852,1744134643627,-159.45,0.0005016,30]
[357543853,1744134643637,-159.45,0.0005016,30]
[357543854,1744134643646,-159.45,0.0005016,30]
[357543855,1744134643656,-159.45,0.0005016,30]
[357543856,1744134643666,-159.45,0.0005016,30]
[357543857,1744134643676,-159.45,0.0005016,30]
[357543858,1744134643688,-159.45,0.0005016,30]
[357543859,1744134643697,-159.45,0.0005016,30]
[357543860,1744134643706,-159.45,0.0005016,30]
[357543861,1744134643715,-159.45,0.0005016,30]
[357543862,1744134643725,-159.45,0.0005016,30]
[357543863,1744134643735,-159.45,0.0005016,30]
[357543864,1744134643745,-159.45,0.0005016,30]
[357543865,1744134643755,-159.45,0.0005016,30]
[357543866,1744134643765,-159.45,0.0005016,30]
[357543867,1744134643775,-159.45,0.0005016,30]
[357543868,1744134643786,-721.0723,0.00050333,2]
[357543869,1744134643796,-1000.0,0.00050342,2]
[357543870,1744134643806,-10446.87294173,0.00050389,2]
[357543871,1744134643819,-822.6463164,0.00050389,2]
[357543876,1744134643980,-5160.93185432,0.00050389,2]
[357543877,1744134643993,-3767.20778755,0.00050389,2]
[357543878,1744134644003,-445.0,0.00050396,30]
[357543879,1744134644013,-348.14,0.00050396,30]
[357543880,1744134644022,-150.0,0.00050396,30]
[357543881,1744134644032,-445.0,0.00050396,30]
[357543882,1744134644042,-348.14,0.00050396,30]
[357543883,1744134644052,-150.0,0.00050396,30]
[357543884,1744134644061,-445.0,0.00050396,30]
[357543885,1744134644071,-348.14,0.00050396,30]
[357543886,1744134644080,-150.0,0.00050396,30]
[357543887,1744134644089,-150.0,0.00050396,30]
[357543888,1744134644098,-348.14,0.00050396,30]
[357543889,1744134644108,-445.0,0.00050396,30]
[357543890,1744134644118,-150.0,0.00050396,30]
[357543891,1744134644128,-445.0,0.00050396,30]
[357543892,1744134644137,-348.14,0.00050396,30]
[357543893,1744134644147,-445.0,0.00050396,30]
[357543894,1744134644156,-348.14,0.00050396,30]
[357543895,1744134644166,-348.14,0.00050396,30]
[357543896,1744134644175,-348.14,0.00050396,30]
[357543897,1744134644187,-348.14,0.00050396,30]
[357543898,1744134644197,-249.59971245,0.00050396,30]
[357543899,1744134644220,-98.54028755,0.00050396,30]
[357543900,1744134644230,-348.14,0.00050396,30]
[357543901,1744134644239,-348.14,0.00050396,30]
[357543902,1744134644249,-348.14,0.00050396,30]
[357543903,1744134644259,-169.37,0.00050398,30]
[357543904,1744134644268,-1282.07,0.00050398,30]
[357543905,1744134644279,-150.0,0.00050398,30]
[357543906,1744134644288,-300.0,0.00050398,30]
[357543907,1744134644298,-150.0,0.00050398,30]
[357543908,1744134644307,-445.0,0.00050398,30]
[357543909,1744134644317,-445.0,0.00050398,30]
[357543910,1744134644327,-150.0,0.00050398,30]
[357543911,1744134644336,-150.0,0.00050398,30]
[357543912,1744134644346,-445.0,0.00050398,30]
[357543913,1744134644355,-348.14,0.00050398,30]
[357543914,1744134644365,-444.41,0.00050398,30]
[357543915,1744134644374,-5000.0,0.000504,120]
[357543916,1744134644384,-153.25,0.00050402,120]
[357543917,1744134644394,-445.7,0.00050452,30]
[357543918,1744134644404,-445.7,0.00050452,30]
[357543919,1744134644414,-445.7,0.00050452,30]
[357543920,1744134644424,-445.7,0.00050452,30]
[357543921,1744134644439,-199.39,0.00050452,30]
[357543922,1744134644449,-941.64,0.00050452,30]
[357543923,1744134644459,-300.0,0.000505,2]
[357543924,1744134644468,-4022.31,0.000506,14]
[357543925,1744134644478,-150.0,0.00050785,120]
[357543926,1744134644487,-163.63,0.00050982,30]
[357543927,1744134644496,-150.0,0.00050982,30]
[357543928,1744134644505,-150.0,0.00050982,30]
[357543929,1744134644514,-150.0,0.00050982,30]
[357543930,1744134644523,-150.0,0.00050982,30]
[357543931,1744134644532,-150.0,0.00050982,30]
[357543932,1744134644542,-150.0,0.00050982,30]
[357543933,1744134644552,-150.0,0.00050982,30]
[357543934,1744134644561,-150.0,0.00050982,30]
[357543935,1744134644571,-500.0,0.00051,120]
[357543936,1744134644580,-300.0,0.00051,2]
[357543937,1744134644590,-882.19,0.00051083,30]
[357543938,1744134644599,-2053.1,0.000511,120]
[357543939,1744134644609,-2836.64,0.000511,120]
[357543940,1744134644618,-1701.98,0.000511,120]
[357543941,1744134644628,-885.18,0.00051233,30]
[357543942,1744134644638,-692.54,0.00051233,30]
[357543943,1744134644648,-150.0,0.00051233,30]
[357543944,1744134644658,-150.0,0.00051233,30]
[357543945,1744134644667,-150.0,0.00051233,30]
[357543946,1744134644677,-4452.85847245,0.00051391,4]
[357543951,1744134646632,-159.45,0.00048946,30]
[357543952,1744134646642,-211.65511328,0.00049493,30]
[357543960,1744134831062,250.0,0.00019,2]
[357543961,1744135238186,150.0,0.00027,120]
[357543962,1744135495543,-150.0,0.000323,120]
[357543969,1744135832389,-200.0,0.000251,2]
[357543970,1744135832399,-241.73,0.00026849,2]
[357543971,1744135832409,-200.0,0.00031,2]
[357543972,1744135832419,-241.73,0.00032646,2]
[357543973,1744135832429,-1366.06804191,0.000356,2]
[357543974,1744135832515,-346.850432,0.000356,2]
[357543975,1744135832578,-309.405576,0.000356,2]
[357543976,1744135832590,-5980.86595009,0.000356,2]
[357543977,1744135832600,-8003.18,0.000356,2]
[357543978,1744135832611,-258.37992,0.000376,120]
[357543979,1744135832623,-241.73,0.00038443,2]
[357543980,1744135832633,-5106.05112388,0.000393,2]
[357543981,1744135832644,-955.73915613,0.000393,2]
[357543982,1744135832681,-1899.99999,0.000393,2]
[357543984,1744135832695,-41.39972999,0.000393,2]
[357543985,1744135832704,-7343.60027001,0.000393,2]
[357544016,1744135838426,-659.57972999,0.000393,2]
[357544017,1744135838437,-578.11,0.00040443,30]
[357544018,1744135838447,-197.0,0.00041,14]
[357544019,1744135838457,-97.83582801,0.000429,2]
[357544020,1744135838469,-62.50417199,0.000429,2]
[357544021,1744135838480,-159.29,0.00042944,2]
[357544022,1744135838493,-700.0,0.00042945,16]
[357544023,1744135838504,-700.0,0.00042945,16]
[357544024,1744135838514,-393.8799664,0.00042945,16]
[357544025,1744135838535,-306.1200336,0.00042945,16]
[357544026,1744135838546,-700.0,0.00042945,16]
[357544027,1744135838556,-700.0,0.00042945,16]
[357544028,1744135838566,-700.0,0.00042945,16]
[357544029,1744135838576,-700.0,0.00042945,16]
[357544030,1744135838587,-700.0,0.00042945,16]
[357544031,1744135838597,-700.0,0.00042945,16]
[357544032,1744135838608,-700.0,0.00042945,16]
[357544033,1744135838622,-197.0,0.00043151,90]
[357544034,1744135838632,-150.0,0.00043404,30]
[357544035,1744135838643,-241.73,0.00044239,2]
[357544036,1744135838654,-150.0,0.00045,120]
[357544037,1744135838666,-1118.345,0.00045,72]
[357544038,1744135838676,-2000.0,0.000455,2]
[357544039,1744135838688,-8003.19,0.000455,2]
[357544040,1744135838698,-8003.18,0.000455,2]
[357544041,1744135838708,-200.0,0.00047739,7]
[357544042,1744135838718,-19590.2,0.00047873,2]
[357544043,1744135838728,-169.21,0.00047894,2]
[357544044,1744135838739,-250.0,0.00047915,120]
[357544045,1744135838748,-436.0,0.00047916,2]
[357544046,1744135838758,-150.18,0.00047945,2]
[357544047,1744135838768,-2000.0,0.00048,120]
[357544048,1744135838779,-23900.0,0.00048071,2]
[357544049,1744135838789,-248.13,0.00048091,120]
[357544050,1744135838799,-2000.0,0.000482,2]
[357544051,1744135838809,-150.0,0.0004833,2]
[357544052,1744135838819,-901.79959999,0.00048503,30]
[357544053,1744135838829,-234.05,0.00048535,30]
[357544055,1744135838839,-1000.0,0.00048729,2]
[357544056,1744135838849,-1042.83,0.00048805,120]
[357544057,1744135838860,-481.04,0.000493,7]
[357544058,1744135838870,-700.0,0.00049315,26]
[357544059,1744135838880,-150.0,0.00049621,120]
[357544060,1744135838890,-1000.0,0.0004989,2]
[357544061,1744135838900,-2000.0,0.0005,120]
[357544062,1744135838910,-500.0,0.0005,120]
[357544063,1744135838920,-1138.92,0.0005,120]
[357544064,1744135838931,-500.0,0.0005,120]
[357544065,1744135838942,-500.0,0.0005,120]
[357544066,1744135838952,-241.73,0.00050036,2]
[357544067,1744135838962,-150.0,0.00050912,120]
[357544068,1744135838973,-2000.0,0.00051,2]
[357544069,1744135838983,-239.30304435,0.00051,14]
[357544070,1744135838996,-152.0,0.00051157,3]
[357544072,1744135839006,-500.0,0.00051233,30]
[357544074,1744135839016,-1538.97745202,0.00051302,15]
[357544076,1744135839026,-18972.8888602,0.00051393,2]
[357544078,1744135839036,-1711.30429187,0.000514,120]
[357544080,1744135839046,-500.0,0.00051403,120]
[357544082,1744135839055,-500.0,0.00051403,120]
[357544084,1744135839065,-500.0,0.00051403,120]
[357544086,1744135839075,-500.0,0.00051403,120]
[357544088,1744135839085,-601.14490446,0.00051403,120]
[357544090,1744135839095,-500.0,0.00051403,120]
[357544092,1744135839105,-500.0,0.00051403,120]
[357544094,1744135839115,-500.0,0.00051403,120]
[357544096,1744135839124,-500.0,0.00051403,120]
[357544098,1744135839134,-500.0,0.00051403,120]
[357544100,1744135839144,-500.0,0.00051403,120]
[357544102,1744135839154,-500.0,0.00051404,2]
[357544104,1744135839164,-500.0,0.00051404,2]
[357544106,1744135839174,-500.0,0.00051404,6]
[357544108,1744135839184,-500.0,0.00051404,6]
[357544110,1744135839194,-500.0,0.00051404,6]
[357544112,1744135839205,-500.0,0.00051404,6]
[357544114,1744135839215,-500.0,0.00051404,6]
[357544116,1744135839225,-500.0,0.00051404,6]
[357544118,1744135839235,-500.0,0.00051404,6]
[357544120,1744135839247,-1000.0,0.00051404,6]
[357544122,1744135839257,-1000.0,0.00051404,6]
[357544124,1744135839267,-1000.0,0.00051404,6]
[357544126,1744135839277,-1000.0,0.00051404,6]
[357544128,1744135839288,-1000.0,0.00051404,6]
[357544129,1744135839298,-1000.0,0.00051404,6]
[357544130,1744135839308,-1000.0,0.00051404,6]
[357544131,1744135839319,-1000.0,0.00051404,6]
[357544154,1744135839330,-1000.0,0.00051404,6]
[357544157,1744135839663,-1000.0,0.00051404,6]
[357544159,1744135839673,-1000.0,0.00051404,6]
[357544161,1744135839683,-1000.0,0.00051404,6]
[357544163,1744135839693,-1000.0,0.00051404,6]
[357544165,1744135839703,-1000.0,0.00051404,6]
[357544167,1744135839712,-1000.0,0.00051404,6]
[357544169,1744135839722,-1000.0,0.00051404,6]
[357544171,1744135839731,-1000.0,0.00051404,6]
[357544173,1744135839744,-1000.0,0.00051404,6]
[357544175,1744135839753,-1000.0,0.00051404,6]
[357544177,1744135839763,-1000.0,0.00051404,6]
[357544179,1744135839773,-1000.0,0.00051404,6]
[357544181,1744135839783,-779.2494315,0.00051428,4]
[357544183,1744135839793,-150.0,0.00051657,120]
[357544185,1744135839802,-1538.97745194,0.0005174,15]
[357544187,1744135839811,-2000.0,0.00051784,13]
[357544189,1744135839821,-2000.0,0.00051784,13]
[357544191,1744135839830,-2000.0,0.00051784,13]
[357544193,1744135839840,-2000.0,0.00051784,13]
[357544195,1744135839849,-2000.0,0.00051784,13]
[357544197,1744135839859,-2000.0,0.00051784,13]
[357544199,1744135839868,-2046.0,0.00051784,13]
[357544201,1744135839878,-300.0,0.000518,18]
[357544203,1744135839888,-600.0,0.000519,18]
[357544205,1744135839898,-3767.2078,0.00051944,2]
[357544207,1744135839908,-823.08942209,0.00051944,15]
[357544209,1744135839918,-1989.82635811,0.00051944,24]
[357544211,1744135839928,-5000.0,0.00051954,120]
[357544213,1744135839937,-169.86254501,0.00051954,46]
[357544215,1744135839946,-154.32081203,0.00051954,29]
[357544217,1744135839955,-419.00966608,0.00051998,120]
[357544219,1744135839965,-500.0,0.00052,120]
[357544221,1744135839974,-3081.93529602,0.00052,120]
[357544223,1744135839984,-239.33026055,0.00052,120]
[357544225,1744135839998,-528.57058597,0.00052,120]
[357544227,1744135840008,-112995.201642,0.00052034,4]
[357544229,1744135840017,-151.52,0.00052034,120]
[357544231,1744135840027,-151.52,0.00052034,120]
[357544233,1744135840038,-11299.5201642,0.00052034,4]
[357544235,1744135840047,-55628.03848561,0.00052043,62]
[357544237,1744135840057,-199.23875302,0.00052043,15]
[357544239,1744135840066,-214.48411212,0.00052043,31]
[357544241,1744135840076,-1716.215077,0.00052043,120]
[357544243,1744135840085,-1716.215077,0.00052043,120]
[357544245,1744135840095,-1716.215077,0.00052043,120]
[357544247,1744135840105,-1716.215077,0.00052043,120]
[357544249,1744135840115,-1716.215077,0.00052043,120]
[357544251,1744135840124,-1716.215077,0.00052043,120]
[357544253,1744135840134,-1716.215077,0.00052043,120]
[357544255,1744135840144,-1716.215077,0.00052043,120]
[357544258,1744135840154,-1716.215077,0.00052043,120]
[357544261,1744135840163,-1716.215077,0.00052043,120]
[357544264,1744135840173,-1716.215077,0.00052043,120]
[357544266,1744135840184,-1716.215077,0.00052043,120]
[357544268,1744135840194,-1716.215077,0.00052043,120]
[357544270,1744135840203,-1825.4287637,0.00052043,120]
[357544272,1744135840213,-1825.4287637,0.00052043,120]
[357544274,1744135840222,-1825.4287637,0.00052043,120]
[357544277,1744135840232,-1825.4287637,0.00052043,120]
[357544278,1744135840244,-1825.4287637,0.00052043,120]
[357544280,1744135840253,-1825.4287637,0.00052043,120]
[357544282,1744135840263,-1825.4287637,0.00052043,120]
[357544285,1744135840273,-1825.4287637,0.00052043,120]
[357544287,1744135840282,-1825.4287637,0.00052043,120]
[357544289,1744135840292,-1825.4287637,0.00052043,120]
[357544290,1744135840302,-2053.6073592,0.00052043,120]
[357544292,1744135840312,-158193.282299,0.00052044,4]
[357544295,1744135840322,-290977.719386,0.00052044,4]
[357544297,1744135840335,-151.52,0.00052044,120]
[357544299,1744135840344,-240.125855,0.00052044,7]
[357544301,1744135840354,-151.0,0.00052044,120]
[357544303,1744135840365,-151.0,0.00052044,120]
[357544305,1744135840374,-151.0,0.00052044,120]
[357544308,1744135840384,-152.179636,0.00052044,120]
[357544311,1744135840394,-151.0,0.00052044,120]
[357544314,1744135840403,-151.0,0.00052044,120]
[357544316,1744135840413,-221.82243,0.00052044,120]